fUST/lending_fUST_20250530
["ID","MTS","AMOUNT","RATE_DAILY","PERIOD"]
[362983349,1748542258852,-481.49,0.00021643,2]
[362983350,1748542258861,-1482.97,0.00021643,2]
[362983351,1748542258871,-2584.94,0.00021643,2]
[362983352,1748542258880,-430.0,0.00021643,2]
[362983353,1748542258889,-430.0,0.00021643,2]
[362983354,1748542258898,-590.34,0.00021643,2]
[362983355,1748542258907,-1878.48,0.00021643,2]
[362983356,1748542258917,-430.0,0.00021643,2]
[362983357,1748542258925,-3294.08,0.00021643,2]
[362983358,1748542258934,-188.28,0.00021643,2]
[362983359,1748542258944,-1200.0,0.0002165,2]
[362983360,1748542258953,-1706.56276341,0.00021728,5]
[362983361,1748542258963,-1706.56276341,0.00021866,6]
[362983362,1748542259076,-151.0,0.000219,4]
[362983363,1748542259086,-789.89113965,0.0002191,2]
[362983364,1748542259096,-456.79734651,0.00021917,2]
[362983365,1748542259106,-2106.58,0.00021917,2]
[362983366,1748542259117,-430.0,0.00021917,2]
[362983367,1748542259126,-350.97,0.00021917,2]
[362983368,1748542259136,-430.0,0.00021917,2]
[362983369,1748542259146,-430.0,0.00021917,2]
[362983370,1748542259157,-680.02,0.00021917,2]
[362983371,1748542259169,-530.0,0.00021917,2]
[362983372,1748542259178,-534.61,0.00021917,2]
[362983373,1748542259188,-506.22310981,0.00021917,2]
[362983374,1748542259199,-2344.39,0.00021917,2]
[362983375,1748542259208,-2070.61,0.00021917,2]
[362983376,1748542259217,-7146.31,0.00021917,2]
[362983377,1748542259227,-2731.81,0.00021917,2]
[362983378,1748542259237,-430.0,0.00021917,2]
[362983379,1748542259246,-2451.38,0.00021917,2]
[362983380,1748542259256,-514.69,0.00021917,2]
[362983381,1748542259266,-430.0,0.00021917,2]
[362983382,1748542259275,-1063.98,0.00021917,2]
[362983383,1748542259284,-1394.97,0.00021917,2]
[362983384,1748542259294,-6270.05,0.00021917,2]
[362983385,1748542259304,-430.0,0.00021917,2]
[362983386,1748542259313,-6482.22,0.00021917,2]
[362983387,1748542259323,-3164.14,0.00021917,2]
[362983388,1748542259333,-430.0,0.00021917,2]
[362983389,1748542259342,-2152.2,0.00021917,2]
[362983390,1748542259351,-1252.48,0.00021917,2]
[362983391,1748542259362,-3469.37,0.00021917,2]
[362983392,1748542259371,-2725.56,0.00021917,2]
[362983393,1748542259380,-4404.76,0.00021917,2]
[362983394,1748542259390,-430.0,0.00021917,2]
[362983395,1748542259399,-2998.31,0.00021917,2]
[362983396,1748542259409,-650.63,0.00021917,2]
[362983397,1748542259418,-2687.64,0.00021917,2]
[362983398,1748542259428,-3760.2,0.00021917,2]
[362983399,1748542259437,-5322.44,0.00021917,2]
[362983400,1748542259446,-430.0,0.00021917,2]
[362983401,1748542259454,-3427.42,0.00021917,2]
[362983402,1748542259463,-677.52,0.00021917,2]
[362983403,1748542259472,-818.87,0.00021917,2]
[362983404,1748542259481,-430.0,0.00021917,2]
[362983405,1748542259490,-793.39,0.00021917,2]
[362983406,1748542259499,-1482.97,0.00021917,2]
[362983407,1748542259508,-2584.94,0.00021917,2]
[362983408,1748542259517,-481.49,0.00021917,2]
[362983409,1748542259527,-430.0,0.00021917,2]
[362983410,1748542259536,-430.0,0.00021917,2]
[362983411,1748542259545,-590.34,0.00021917,2]
[362983412,1748542259554,-1878.48,0.00021917,2]
[362983413,1748542259563,-430.0,0.00021917,2]
[362983414,1748542259572,-3294.08,0.00021917,2]
[362983415,1748542259581,-465.028516,0.00021918,2]
[362983416,1748542259590,-280.66,0.00022,7]
[362983417,1748542259600,-701.6,0.00022,7]
[362983418,1748542259609,-38293.75,0.00022,2]
[362983419,1748542259618,-5594.23,0.00022,2]
[362983420,1748542259628,-1706.56276341,0.00022003,6]
[362983421,1748542259637,-1706.56276341,0.00022141,6]
[362983422,1748542259647,-433.02,0.00022145,2]
[362983423,1748542259658,-2106.58,0.00022191,2]
[362983424,1748542259667,-430.0,0.00022191,2]
[362983425,1748542259676,-570.0,0.00022191,2]
[362983426,1748542259684,-430.0,0.00022191,2]
[362983427,1748542259692,-680.02,0.00022191,2]
[362983428,1748542259700,-534.61,0.00022191,2]
[362983429,1748542259708,-2344.39,0.00022191,2]
[362983430,1748542259717,-2070.61,0.00022191,2]
[362983431,1748542259726,-7146.31,0.00022191,2]
[362983432,1748542259735,-2731.81,0.00022191,2]
[362983433,1748542259745,-2451.38,0.00022191,2]
[362983434,1748542259755,-514.69,0.00022191,2]
[362983435,1748542259764,-430.0,0.00022191,2]
[362983436,1748542259774,-1063.98,0.00022191,2]
[362983437,1748542259784,-1394.97,0.00022191,2]
[362983438,1748542259794,-6270.05,0.00022191,2]
[362983439,1748542259803,-430.0,0.00022191,2]
[362983440,1748542259812,-6482.22,0.00022191,2]
[362983441,1748542259822,-3164.14,0.00022191,2]
[362983442,1748542259831,-430.0,0.00022191,2]
[362983443,1748542259841,-2152.2,0.00022191,2]
[362983444,1748542259850,-1252.48,0.00022191,2]
[362983445,1748542259859,-3469.37,0.00022191,2]
[362983446,1748542259869,-2725.56,0.00022191,2]
[362983447,1748542259879,-4404.76,0.00022191,2]
[362983448,1748542259888,-157.4,0.00022191,2]
[362983449,1748542259898,-2998.31,0.00022191,2]
[362983450,1748542259908,-650.63,0.00022191,2]
[362983451,1748542259918,-2687.64,0.00022191,2]
[362983452,1748542259927,-3760.2,0.00022191,2]
[362983453,1748542259937,-5322.44,0.00022191,2]
[362983454,1748542259946,-430.0,0.00022191,2]
[362983455,1748542259956,-3427.42,0.00022191,2]
[362983456,1748542259965,-677.52,0.00022191,2]
[362983457,1748542259975,-818.87,0.00022191,2]
[362983458,1748542259984,-430.0,0.00022191,2]
[362983459,1748542259994,-793.39,0.00022191,2]
[362983460,1748542260004,-1482.97,0.00022191,2]
[362983461,1748542260014,-2584.94,0.00022191,2]
[362983462,1748542260024,-481.49,0.00022191,2]
[362983463,1748542260033,-430.0,0.00022191,2]
[362983464,1748542260043,-430.0,0.00022191,2]
[362983465,1748542260053,-590.34,0.00022191,2]
[362983466,1748542260064,-1878.48,0.00022191,2]
[362983467,1748542260074,-430.0,0.00022191,2]
[362983468,1748542260083,-3294.08,0.00022191,2]
[362983469,1748542260093,-1706.56276341,0.00022279,6]
[362983470,1748542260102,-1706.56276341,0.00022417,7]
[362983471,1748542260112,-2106.58,0.00022465,2]
[362983472,1748542260122,-430.0,0.00022465,2]
[362983473,1748542260131,-430.0,0.00022465,2]
[362983474,1748542260140,-680.02,0.00022465,2]
[362983475,1748542260150,-534.61,0.00022465,2]
[362983476,1748542260162,-2344.39,0.00022465,2]
[362983477,1748542260171,-2070.61,0.00022465,2]
[362983478,1748542260180,-7146.31,0.00022465,2]
[362983479,1748542260189,-2731.81,0.00022465,2]
[362983480,1748542260199,-2451.38,0.00022465,2]
[362983481,1748542260209,-514.69,0.00022465,2]
[362983482,1748542260219,-550.0,0.00022465,2]
[362983483,1748542260229,-1063.98,0.00022465,2]
[362983484,1748542260240,-1394.97,0.00022465,2]
[362983485,1748542260249,-6270.05,0.00022465,2]
[362983486,1748542260259,-430.0,0.00022465,2]
[362983487,1748542260269,-6482.22,0.00022465,2]
[362983488,1748542260279,-3164.14,0.00022465,2]
[362983489,1748542260288,-430.0,0.00022465,2]
[362983490,1748542260299,-2152.2,0.00022465,2]
[362983491,1748542260308,-1252.48,0.00022465,2]
[362983492,1748542260318,-3469.37,0.00022465,2]
[362983493,1748542260328,-2725.56,0.00022465,2]
[362983494,1748542260338,-4404.76,0.00022465,2]
[362983495,1748542260348,-2998.31,0.00022465,2]
[362983496,1748542260358,-650.63,0.00022465,2]
[362983497,1748542260368,-2687.64,0.00022465,2]
[362983498,1748542260378,-3760.2,0.00022465,2]
[362983499,1748542260388,-5322.44,0.00022465,2]
[362983500,1748542260398,-430.0,0.00022465,2]
[362983501,1748542260408,-3427.42,0.00022465,2]
[362983502,1748542260418,-677.52,0.00022465,2]
[362983503,1748542260428,-818.87,0.00022465,2]
[362983504,1748542260438,-430.0,0.00022465,2]
[362983505,1748542260448,-793.39,0.00022465,2]
[362983506,1748542260458,-410.44561633,0.00022465,2]
[362983507,1748542260660,-1072.52438367,0.00022465,2]
[362983508,1748542260670,-1428.30305123,0.00022465,2]
[362983509,1748542260685,-1156.63694877,0.00022465,2]
[362983510,1748542260694,-481.49,0.00022465,2]
[362983511,1748542260703,-430.0,0.00022465,2]
[362983512,1748542260712,-430.0,0.00022465,2]
[362983513,1748542260721,-590.34,0.00022465,2]
[362983514,1748542260730,-1878.48,0.00022465,2]
[362983515,1748542260739,-430.0,0.00022465,2]
[362983516,1748542260748,-3294.08,0.00022465,2]
[362983517,1748542260758,-1706.56276341,0.00022555,7]
[362983518,1748542260766,-326.31370584,0.00022558,2]
[362983519,1748542260775,-1000.56,0.00022588,2]
[362983520,1748542260784,-1706.56276341,0.00022693,7]
[362983521,1748542260793,-2106.58,0.00022739,2]
[362983522,1748542260802,-532.29,0.00022739,2]
[362983523,1748542260811,-430.0,0.00022739,2]
[362983524,1748542260820,-680.02,0.00022739,2]
[362983525,1748542260829,-534.61,0.00022739,2]
[362983526,1748542260840,-2344.39,0.00022739,2]
[362983527,1748542260849,-2070.61,0.00022739,2]
[362983528,1748542260858,-3569.61770959,0.00022739,2]
[362983529,1748542260982,-239.42145032,0.00019178,2]
[362983530,1748542260992,-430.0,0.00019178,2]
[362983531,1748542261002,-103.37268591,0.00019178,2]
[362983532,1748542261014,-391.26284016,0.00019178,2]
[362983533,1748542261023,-102.01972137,0.00019726,2]
[362983534,1748542261035,-327.98027863,0.00019726,2]
[362983535,1748542261044,-430.0,0.0002,2]
[362983536,1748542261054,-430.0,0.00020273,2]
[362983537,1748542261063,-430.0,0.00020547,2]
[362983538,1748542261073,-430.0,0.00020821,2]
[362983539,1748542261082,-3094.41972137,0.00022739,2]
[362983540,1748542261094,-482.27256904,0.00022739,2]
[362983541,1748542261103,-2731.81,0.00022739,2]
[362983542,1748542261112,-2451.38,0.00022739,2]
[362983543,1748542261122,-514.69,0.00022739,2]
[362983544,1748542261131,-1063.98,0.00022739,2]
[362983545,1748542261141,-1394.97,0.00022739,2]
[362983546,1748542261150,-2323.82017636,0.00022739,2]
[362983547,1748542261165,-3946.22982364,0.00022739,2]
[362983548,1748542261175,-430.0,0.00022739,2]
[362983549,1748542261187,-6482.22,0.00022739,2]
[362983550,1748542261196,-3164.14,0.00022739,2]
[362983551,1748542261207,-342.06,0.00022739,2]
[362983552,1748542261217,-2152.2,0.00022739,2]
[362983553,1748542261226,-1252.48,0.00022739,2]
[362983554,1748542261235,-3469.37,0.00022739,2]
[362983555,1748542261243,-2725.56,0.00022739,2]
[362983556,1748542261252,-4404.76,0.00022739,2]
[362983557,1748542261260,-2998.31,0.00022739,2]
[362983558,1748542261409,-650.63,0.00022739,2]
[362983559,1748542261418,-2687.64,0.00022739,2]
[362983560,1748542261426,-3760.2,0.00022739,2]
[362983561,1748542261434,-5322.44,0.00022739,2]
[362983562,1748542261441,-570.0,0.00022739,2]
[362983563,1748542261453,-3427.42,0.00022739,2]
[362983564,1748542261461,-677.52,0.00022739,2]
[362983565,1748542261469,-818.87,0.00022739,2]
[362983566,1748542261477,-430.0,0.00022739,2]
[362983567,1748542261485,-793.39,0.00022739,2]
[362983568,1748542261493,-1482.97,0.00022739,2]
[362983569,1748542261500,-2584.94,0.00022739,2]
[362983570,1748542261507,-481.49,0.00022739,2]
[362983571,1748542261515,-430.0,0.00022739,2]
[362983572,1748542261524,-430.0,0.00022739,2]
[362983573,1748542261531,-590.34,0.00022739,2]
[362983574,1748542261539,-1878.48,0.00022739,2]
[362983575,1748542261547,-430.0,0.00022739,2]
[362983576,1748542261554,-3294.08,0.00022739,2]
[362983577,1748542261560,-1706.56276341,0.00022831,8]
[362983578,1748542261568,-1000.0,0.00022898,2]
[362983579,1748542261575,-1706.56276341,0.00022969,8]
[362983580,1748542261582,-2106.58,0.00023013,2]
[362983581,1748542261590,-442.67,0.00023013,2]
[362983582,1748542261598,-680.02,0.00023013,2]
[362983583,1748542261605,-534.61,0.00023013,2]
[362983584,1748542261614,-2344.39,0.00023013,2]
[362983585,1748542261622,-2070.61,0.00023013,2]
[362983586,1748542261630,-6180.76065209,0.00023013,2]
[362983587,1748542261698,-300.0,0.00019177,2]
[362983588,1748542261705,-404.45371331,0.00019178,2]
[362983589,1748542261712,-5930.92,0.00019319,3]
[362983590,1748542261719,-314.78059479,0.00020214,2]
[362983591,1748542261727,-11861.84,0.00020689,3]
[362983592,1748542261737,-420.0,0.00020899,2]
[362983593,1748542261750,-430.0,0.00021095,2]
[362983594,1748542261763,-789.89113965,0.00022277,2]
[362983595,1748542261773,-587.0,0.00022776,2]
[362983596,1748542261783,-965.54934791,0.00023013,2]
[362983597,1748542261792,-2731.81,0.00023013,2]
[362983598,1748542261802,-2451.38,0.00023013,2]
[362983599,1748542261812,-514.69,0.00023013,2]
[362983600,1748542261821,-1063.98,0.00023013,2]
[362983601,1748542261831,-1394.97,0.00023013,2]
[362983602,1748542261841,-6270.05,0.00023013,2]
[362983603,1748542261851,-430.0,0.00023013,2]
[362983604,1748542261862,-6482.22,0.00023013,2]
[362983605,1748542261871,-3164.14,0.00023013,2]
[362983606,1748542261881,-2152.2,0.00023013,2]
[362983607,1748542261890,-1252.48,0.00023013,2]
[362983608,1748542261899,-3469.37,0.00023013,2]
[362983609,1748542261913,-2725.56,0.00023013,2]
[362983610,1748542261923,-4404.76,0.00023013,2]
[362983611,1748542261933,-2998.31,0.00023013,2]
[362983612,1748542261942,-650.63,0.00023013,2]
[362983613,1748542261952,-2687.64,0.00023013,2]
[362983614,1748542261962,-3760.2,0.00023013,2]
[362983615,1748542261971,-5322.44,0.00023013,2]
[362983616,1748542261981,-3427.42,0.00023013,2]
[362983617,1748542261993,-677.52,0.00023013,2]
[362983618,1748542262003,-818.87,0.00023013,2]
[362983619,1748542262014,-430.0,0.00023013,2]
[362983620,1748542262024,-793.39,0.00023013,2]
[362983621,1748542262034,-1482.97,0.00023013,2]
[362983622,1748542262044,-2584.94,0.00023013,2]
[362983623,1748542262055,-481.49,0.00023013,2]
[362983624,1748542262065,-430.0,0.00023013,2]
[362983625,1748542262075,-430.0,0.00023013,2]
[362983626,1748542262084,-590.34,0.00023013,2]
[362983627,1748542262095,-1878.48,0.00023013,2]
[362983628,1748542262104,-438.75,0.00023013,2]
[362983629,1748542262114,-3294.08,0.00023013,2]
[362983630,1748542262124,-1706.56276341,0.00023107,8]
[362983631,1748542262134,-500.0,0.000232,2]
[362983632,1748542262144,-1706.56276341,0.00023245,8]
[362983633,1748542262154,-2106.58,0.00023287,2]
[362983634,1748542262168,-2000.0,0.00023287,2]
[362983635,1748542262178,-680.02,0.00023287,2]
[362983636,1748542262188,-534.61,0.00023287,2]
[362983637,1748542262197,-2344.39,0.00023287,2]
[362983638,1748542262208,-2070.61,0.00023287,2]
[362983639,1748542262219,-7146.31,0.00023287,2]
[362983640,1748542262228,-2731.81,0.00023287,2]
[362983641,1748542262239,-2451.38,0.00023287,2]
[362983642,1748542262249,-514.69,0.00023287,2]
[362983643,1748542262259,-1063.98,0.00023287,2]
[362983644,1748542262269,-1394.97,0.00023287,2]
[362983645,1748542262279,-6270.05,0.00023287,2]
[362983646,1748542262289,-430.0,0.00023287,2]
[362983647,1748542262299,-6482.22,0.00023287,2]
[362983648,1748542262308,-3164.14,0.00023287,2]
[362983649,1748542262318,-2152.2,0.00023287,2]
[362983650,1748542262329,-1252.48,0.00023287,2]
[362983651,1748542262338,-3469.37,0.00023287,2]
[362983652,1748542262348,-2725.56,0.00023287,2]
[362983653,1748542262358,-4404.76,0.00023287,2]
[362983654,1748542262367,-2998.31,0.00023287,2]
[362983655,1748542262377,-650.63,0.00023287,2]
[362983656,1748542262387,-2687.64,0.00023287,2]
[362983657,1748542262397,-3760.2,0.00023287,2]
[362983658,1748542262410,-5322.44,0.00023287,2]
[362983659,1748542262420,-3427.42,0.00023287,2]
[362983660,1748542262431,-677.52,0.00023287,2]
[362983661,1748542262442,-818.87,0.00023287,2]
[362983662,1748542262452,-430.0,0.00023287,2]
[362983663,1748542262462,-793.39,0.00023287,2]
[362983664,1748542262472,-1482.97,0.00023287,2]
[362983665,1748542262482,-2584.94,0.00023287,2]
[362983666,1748542262492,-481.49,0.00023287,2]
[362983667,1748542262502,-430.0,0.00023287,2]
[362983668,1748542262511,-430.0,0.00023287,2]
[362983669,1748542262521,-590.34,0.00023287,2]
[362983670,1748542262531,-1878.48,0.00023287,2]
[362983671,1748542262540,-3294.08,0.00023287,2]
[362983672,1748542262550,-30282.45454807,0.000233,2]
[362983673,1748542262563,-1834.29756661,0.000233,2]
[362983674,1748542262695,-415.51965597,0.00019178,2]
[362983675,1748542262705,-430.0,0.00019178,2]
[362983676,1748542262716,-430.0,0.00019178,2]
[362983677,1748542262726,-430.0,0.00019452,2]
[362983678,1748542262737,-428.54429707,0.00019452,2]
[362983679,1748542262747,-430.0,0.00021369,2]
[362983680,1748542262757,-430.0,0.00021643,2]
[362983681,1748542262767,-345.38526908,0.00021917,2]
[362983682,1748542262780,-84.61473092,0.00021917,2]
[362983683,1748542262790,-256.94,0.00022191,2]
[362983684,1748542262799,-446.64553732,0.00022645,2]
[362983685,1748542262812,-343.24560233,0.00022645,2]
[362983686,1748542262822,-1382.84165441,0.000233,2]
[362983687,1748542262839,-430.0,0.00019178,2]
[362983688,1748542262848,-654.25060754,0.000233,2]
[362983689,1748542262861,-670.79689604,0.000233,2]
[362983690,1748542268022,619.56,0.00015137,2]
[362983691,1748542268427,131.91769185,0.00016513,2]
[362983692,1748542268448,883.18427129,0.00016513,2]
[362983693,1748542268469,224.01803686,0.00016513,2]
[362983696,1748542273634,500.0,0.00024,120]
[362983697,1748542274404,500.0,0.00024,120]
[362983698,1748542275197,500.0,0.00024,120]
[362983699,1748542275982,500.0,0.00024,120]
[362983700,1748542276720,500.0,0.00024,120]
[362983701,1748542277536,500.0,0.00024,120]
[362983702,1748542278330,500.0,0.00024,120]
[362983703,1748542279302,500.0,0.00024,120]
[362983704,1748542280089,500.0,0.00024,120]
[362983705,1748542280927,500.0,0.00024,120]
[362983706,1748542281657,500.0,0.00024,120]
[362983707,1748542282425,500.0,0.00024,120]
[362983708,1748542283215,500.0,0.00024,120]
[362983709,1748542283997,500.0,0.00024,120]
[362983710,1748542284770,615.16,0.00024,120]
[362983712,1748542291758,3300.0,0.0002359,120]
[362983713,1748542292215,3300.0,0.0002358,120]
[362983714,1748542292302,150.5,0.0002359,120]
[362983715,1748542292709,3300.0,0.0002357,120]
[362983716,1748542292750,150.5,0.0002358,120]
[362983717,1748542293160,3300.0,0.00024099,120]
[362983718,1748542293206,254.37,0.0002357,120]
[362983719,1748542294020,3300.0,0.00024089,120]
[362983720,1748542294474,3300.0,0.00024079,120]
[362983724,1748542339436,585.77,0.00015387,2]
[362983725,1748542339824,571.49566251,0.00016786,2]
[362983726,1748542339847,600.03433749,0.00016786,2]
[362983727,1748542410866,553.81,0.0001454,2]
[362983728,1748542411285,1107.63,0.00015862,2]
[362983729,1748542481717,523.61,0.00014563,2]
[362983730,1748542482097,1047.21,0.00015887,2]
[362983731,1748542554923,515.19,0.00014551,2]
[362983732,1748542555344,1030.37,0.00015874,2]
[362983733,1748542626821,515.64,0.00014552,2]
[362983734,1748542627209,1031.29,0.00015875,2]
[362983735,1748542653137,1320.0,0.0002328,120]
[362983736,1748542653614,1320.0,0.0002327,120]
[362983737,1748542654084,1320.0,0.0002326,120]
[362983738,1748542694276,515.64,0.00014556,2]
[362983739,1748542694678,890.14071029,0.00015879,2]
[362983740,1748542694700,141.14928971,0.00015879,2]
[362983741,1748542762408,523.5,0.00015074,2]
[362983742,1748542833753,523.5,0.00014436,2]
[362983743,1748542834177,1047.0,0.00015748,2]
[362983744,1748542899444,804.611089,0.00013699,2]
[362983745,1748542901858,523.5,0.00014461,2]
[362983746,1748542902261,1047.0,0.00015776,2]
[362983748,1748542971235,494.95,0.00014447,2]
[362983749,1748542971640,989.89,0.00015761,2]
[362983751,1748543013183,924.0,0.0002328,120]
[362983752,1748543013630,924.0,0.0002327,120]
[362983753,1748543014118,924.0,0.0002326,120]
[362983754,1748543048625,467.95,0.00014419,2]
[362983755,1748543048995,935.9,0.0001573,2]
[362983874,1748543121335,479.46,0.00015033,2]
[362983877,1748543154122,-958.92,0.000164,2]
[362983878,1748543154144,-21.96402021,0.00016507,2]
[362983880,1748543156084,-623.54884687,0.00016507,2]
[362983887,1748543191277,-359.96909626,0.00016507,2]
[362983888,1748543193303,453.31,0.00014457,2]
[362983889,1748543193694,906.61,0.00015771,2]
[362983891,1748543233298,-546.24910139,0.00016342,2]
[362983892,1748543240094,-88.99092043,0.00016342,2]
[362983893,1748543240115,-494.65522411,0.00017086,2]
[362983894,1748543241072,-865.26477589,0.00017086,2]
[362983895,1748543241093,-92.72301363,0.00018296,2]
[362983896,1748543241139,-132.69196587,0.00018296,2]
[362983897,1748543241161,-30.21281164,0.000184,2]
[362983898,1748543265038,403.31,0.00014494,2]
[362983899,1748543265438,584.06984351,0.00015811,2]
[362983900,1748543265462,222.54015649,0.00015811,2]
[362983903,1748543272452,1500.0,0.0002465,120]
[362983974,1748543293098,411.6617813,0.00010618,2]
[362983975,1748543308647,280.34756701,0.0001,2]
[362983977,1748543317814,470.63806926,0.00015,2]
[362983978,1748543318446,575.84784357,0.000149,2]
[362983979,1748543318632,1000.0,0.0001,2]
[362983980,1748543320613,6991.48069,0.0002,120]
[362983982,1748543324666,7364.67480459,0.0001,2]
[362983983,1748543324688,2961.03541763,0.0001,2]
[362983984,1748543336973,387.16,0.00014605,2]
[362983985,1748543337393,774.32,0.00015932,2]
[362983986,1748543351149,-1161.47,0.0001726,2]
[362983987,1748543352160,-451.36683151,0.00018,2]
[362983988,1748543352183,-986.21157315,0.00018131,2]
[362983989,1748543366176,-5018.44812855,0.00018131,2]
[362983990,1748543373092,647.0,0.0002328,120]
[362983991,1748543373559,647.0,0.0002327,120]
[362983992,1748543374009,647.0,0.0002326,120]
[362983994,1748543409240,354.44,0.00014585,2]
[362983995,1748543409638,420.01971706,0.00015911,2]
[362983996,1748543409660,288.86028294,0.00015911,2]
[362983997,1748543410046,582.83160734,0.00017237,2]
[362983998,1748543410069,480.48839266,0.00017237,2]
[362984055,1748543431963,-1417.76,0.00018563,2]
[362984057,1748543431973,-172.0009139,0.00018966,2]
[362984059,1748543431982,-300.0,0.00019077,2]
[362984061,1748543431991,-565.0,0.00019077,2]
[362984063,1748543432001,-6056.52212665,0.00019078,2]
[362984065,1748543432010,-300.0,0.00019122,2]
[362984067,1748543432019,-370.7692753,0.00019123,2]
[362984069,1748543432029,-3146.33,0.00019168,3]
[362984071,1748543432038,-1573.16,0.00019168,3]
[362984073,1748543432047,-786.58,0.00019168,3]
[362984074,1748543432056,-393.29,0.00019168,3]
[362984075,1748543432065,-196.65,0.00019168,3]
[362984077,1748543432075,-589.96,0.00019168,3]
[362984079,1748543432084,-450.0,0.0001917,2]
[362984081,1748543432094,-154.66052309,0.0001917,2]
[362984083,1748543432103,-500.0,0.0001917,2]
[362984085,1748543432112,-500.0,0.0001917,2]
[362984087,1748543432122,-6651.46392763,0.00019171,2]
[362984164,1748543438550,-500.0,0.0001917,2]
[362984165,1748543438560,-404.00610259,0.0001917,2]
[362984166,1748543438574,-95.99389741,0.0001917,2]
[362984167,1748543438583,-500.0,0.0001917,2]
[362984168,1748543438592,-500.0,0.0001917,2]
[362984169,1748543438737,-500.0,0.0001917,2]
[362984170,1748543438747,-500.0,0.0001917,2]
[362984171,1748543438757,-500.0,0.0001917,2]
[362984172,1748543438767,-500.0,0.0001917,2]
[362984173,1748543438776,-629.97068395,0.0001917,2]
[362984174,1748543438786,-500.0,0.0001917,2]
[362984175,1748543438796,-500.0,0.0001917,2]
[362984176,1748543438806,-197.5157723,0.0001917,2]
[362984177,1748543438815,-500.0,0.0001917,2]
[362984178,1748543438824,-500.0,0.0001917,2]
[362984179,1748543438834,-500.0,0.0001917,2]
[362984180,1748543438843,-500.0,0.0001917,2]
[362984181,1748543438853,-500.0,0.0001917,2]
[362984182,1748543438863,-500.0,0.0001917,2]
[362984183,1748543438872,-500.0,0.0001917,2]
[362984184,1748543438882,-500.0,0.0001917,2]
[362984185,1748543438892,-500.0,0.0001917,2]
[362984186,1748543438901,-3812.44809076,0.00019171,2]
[362984187,1748543438911,-621.2570058,0.00019173,2]
[362984188,1748543438920,-500.0,0.00019173,2]
[362984189,1748543438930,-500.0,0.00019173,2]
[362984190,1748543438940,-210.21630469,0.00019173,2]
[362984191,1748543438950,-504.27534213,0.00019173,2]
[362984192,1748543438959,-160.62330563,0.00019173,2]
[362984193,1748543438969,-500.0,0.00019173,2]
[362984194,1748543438978,-168.57538381,0.00019173,2]
[362984195,1748543438987,-500.0,0.00019173,2]
[362984196,1748543438997,-500.0,0.00019173,2]
[362984197,1748543439006,-500.0,0.00019173,2]
[362984198,1748543439016,-500.0,0.00019173,2]
[362984199,1748543439025,-500.0,0.00019173,2]
[362984200,1748543439034,-500.0,0.00019173,2]
[362984201,1748543439043,-500.0,0.00019173,2]
[362984202,1748543439053,-500.0,0.00019173,2]
[362984203,1748543439062,-209.11051425,0.00019173,2]
[362984204,1748543439071,-160.0,0.00019177,2]
[362984205,1748543439081,-500.0,0.00019177,2]
[362984206,1748543439090,-253.78664399,0.00019177,2]